Cogmind - Beta 16 @@@ ROGUE MODE // 2026.01.25 @ 11:20:55 Player: Anonymous Bosch Result: Destroyed by G-73 Enforcer with Heavy Laser Performance ------------- Evolutions (9) 4500 Regions Visited (20) 4000 Robots Destroyed (298) 1490 Value Destroyed (14865) 14865 Prototype IDs (64) 1280 Alien Tech Used (3) 600 Bonus (8621) 8621 TOTAL SCORE: 35356 Bonus ------- Triggered High Security 500 High Alert Combat Kills 4164 Follower Combat Kills 2222 Registered with UFD 300 Met Optimus in HQ 500 Met Zhirov 300 Met Warlord at Base 500 MAIN.C Attacked Warlord 500 Friendly Fire -365 Cogmind --------- Core Integrity 0/1600 Matter 245/300 Energy 100/100 System Corruption 29% Temperature Cool (9) Movement Core (50) Location -1/Access Parts ------- > --- POWER (3) -------- (None) > --- PROPULSION (6) --- (None) > --- UTILITY (12) ----- (None) > --- WEAPON (4) ------- (None) > --- INVENTORY (5) ---- Advanced Terrain Scan Processor Advanced Shield Generator Advanced Force Field Drone Bay (2/2) Nova Cannon Peak State ------------ > --- POWER ------------ Quantum Reactor Light Quantum Reactor Light Quantum Reactor > --- PROPULSION ------- Biometal Heavy Treads Advanced Heavy Siege Treads Advanced Heavy Siege Treads > --- UTILITY ---------- Experimental Heat Sink Experimental Heat Sink Huge Storage Unit Experimental Optical Array Advanced Sensor Array Experimental Signal Interpreter Advanced Targeting Computer Advanced Transmission Jammer Centrium Heavy Armor Plating Experimental EM Shield Advanced Force Field > --- WEAPON ----------- Compact HERF Cannon Enhanced Nova Cannon Enhanced Nova Cannon Enhanced Nova Cannon > --- INVENTORY -------- Compact Particle Reactor Light Quantum Reactor Heavy Siege Treads Biometal Medium Treads Biometal Medium Treads Improved Heavy Siege Treads Experimental Heat Sink Improved Coolant Injector Energy Well Improved Energy Well Advanced Terrain Scan Processor Graphene Brace Thermal Barrier Advanced Shield Generator Advanced Force Field Improved Point Defense System Drone Bay Transdimensional Reconstructor Compact HERF Cannon Nova Cannon Enhanced Nova Cannon Gamma Bomb Array Ragnarok Missile Launcher [Rating: 217] Favorites ----------- Power Antimatter Reactor Engine Improved Deuterium Engine Power Core Micro Fission Core Reactor Antimatter Reactor Propulsion Gyrokinetic Inverter Treads Improved Heavy Siege Treads Leg Centrium Leg Wheel Armored Huge Wheel Hover Unit Gyrokinetic Inverter Flight Unit Field Propulsion Drive Utility Experimental Optical Array Device Advanced Transmission Jammer Storage Large Storage Unit Processor Experimental Optical Array Hackware Hacking Suite Protection Centrium Heavy Armor Plating Artifact Phase Redirector Weapon Enhanced Nova Cannon Energy Gun Quantum Rifle Energy Cannon Enhanced Nova Cannon Ballistic Gun Light Assault Rifle Ballistic Cannon Mass Driver Launcher Gamma Bomb Array Special Weapon CPS Tube Impact Weapon Power Maul Slashing Weapon Ripper Piercing Weapon Vortex Lance Build | -11 -10 -10 -7 -5 -5 -5 -5 -4 -4 -4 -4 -4 -4 -4 -3 -3 -3 -2 -2 -1 ------- Run | Yrd Mat Sub Scr Fac Upp Upp War Pro Fac Was Fac Upp Upp Zhi Pro Res Qua Res Tes Acc Slots Evolved 18 | . . . . 10 . . . . 2 . . . . . . 2 . 2 . 2 Power 2 | . . . . . . . . . 1 . . . . . . . . 1 . . Propulsion 4 | . . . . 4 . . . . . . . . . . . . . . . . Utility 10 | . . . . 6 . . . . 1 . . . . . . 1 . 1 . 1 Weapon 2 | . . . . . . . . . . . . . . . . 1 . . . 1 Parts Attached 225 | 7 7 9 11 40 9 2 18 1 7 13 16 2 . 4 . 8 7 23 14 27 Power 30 | 1 . 2 3 3 . . 1 . 2 2 1 . . 1 . 1 . 4 4 5 Engine 7 | 1 . 2 3 . . . . . 1 . . . . . . . . . . . Core 5 | . . . . 3 . . 1 . 1 . . . . . . . . . . . Reactor 18 | . . . . . . . . . . 2 1 . . 1 . 1 . 4 4 5 Propulsion 59 | 2 . 4 3 10 3 . 4 . 5 4 4 . . 1 . 3 . 6 4 6 Treads 34 | 2 . 1 2 2 . . . . 1 2 4 . . 1 . 3 . 6 4 6 Leg 4 | . . 2 . . . . . . . 2 . . . . . . . . . . Wheel 6 | . . 1 1 . . . . . 4 . . . . . . . . . . . Hover 11 | . . . . 8 . . 3 . . . . . . . . . . . . . Flight 4 | . . . . . 3 . 1 . . . . . . . . . . . . . Utility 88 | 2 5 . 3 15 5 1 9 . . 5 7 2 . 2 . 3 5 9 2 13 Device 41 | 1 1 . . 7 2 1 3 . . 1 4 2 . . . 2 3 4 2 8 Storage 15 | 1 4 . 2 2 . . . . . . . . . 1 . 1 . 2 . 2 Processor 12 | . . . . 3 1 . 4 . . . 2 . . . . . . 1 . 1 Hackware 1 | . . . . 1 . . . . . . . . . . . . . . . . Protection 18 | . . . 1 2 2 . 2 . . 4 1 . . 1 . . 2 1 . 2 Artifact 1 | . . . . . . . . . . . . . . . . . . 1 . . Weapon 48 | 2 2 3 2 12 1 1 4 1 . 2 4 . . . . 1 2 4 4 3 Energy Gun 7 | 2 . 1 . 1 . . . . . 1 . . . . . . 2 . . . Energy Cannon 19 | . 1 . 1 4 . . 1 . . . 4 . . . . 1 . 3 2 2 Ballistic Gun 4 | . 1 . . 1 1 . . . . 1 . . . . . . . . . . Ballistic Cannon 3 | . . . . 2 . 1 . . . . . . . . . . . . . . Launcher 6 | . . 1 . 1 . . . . . . . . . . . . . 1 2 1 Special Weapon 3 | . . . 1 1 . . 1 . . . . . . . . . . . . . Impact Weapon 4 | . . 1 . 2 . . . 1 . . . . . . . . . . . . Slashing Weapon 1 | . . . . . . . 1 . . . . . . . . . . . . . Piercing Weapon 1 | . . . . . . . 1 . . . . . . . . . . . . . Special Melee Weapon . | . . . . . . . . . . . . . . . . . . . . . Unidentified Prototypes 28 | . . . 1 7 1 . 4 . . 1 . . . 4 . . 1 2 5 2 Corrupted Parts 5 | . . . . 1 . . . . . . . . . . . . . 2 . 2 System Corruption 29 | . . . . 2 . . . . . . . . . . . . . 12 . 15 Parts Lost 92 | . 1 4 . 15 13 3 1 4 4 . . . . . 1 4 . 7 . 35 Power 10 | . . . . 1 1 . . . . . . . . . . 1 . 2 . 5 Propulsion 31 | . . 2 . 3 5 2 1 3 2 . . . . . . 1 . 3 . 9 Utility 32 | . . . . 7 6 . . 1 2 . . . . . 1 . . 2 . 13 Weapon 19 | . 1 2 . 4 1 1 . . . . . . . . . 2 . . . 8 Highest Loss Streak 14 | . 1 2 . 5 7 9 1 2 3 . . . . . 1 2 . 3 . 14 To Critical Strikes 1 | . 1 . . . . . . . . . . . . . . . . . . . Average Backups 12 | 3 11 14 15 13 13 4 4 4 3 3 4 4 5 4 4 7 12 16 22 20 Power . | . 1 2 1 . 1 . . . . . . . . . . . . . 1 2 Propulsion 2 | . 2 2 3 3 4 . . . . . . 1 1 1 1 1 . 1 3 3 Utility 5 | . 5 7 6 3 2 2 1 1 1 1 . 1 2 2 1 3 8 8 9 10 Weapon 3 | 1 2 2 3 4 4 2 3 3 2 2 3 2 2 1 1 1 2 5 6 4 Tool/Special . | . . . . . . . . . . . . . . . . . . . . . Unused Backups 49 | . 2 2 9 5 6 . 2 . . 1 1 . . . . 3 2 7 2 7 Power 8 | . 2 . 2 1 1 . . . . . . . . . . . . 2 . . Propulsion 4 | . . . . . 2 . . . . . . . . . . 1 1 . . . Utility 22 | . . 1 6 1 . . . . . 1 . . . . . 2 . 5 . 6 Weapon 14 | . . 1 1 2 3 . 2 . . . 1 . . . . . 1 . 2 1 Tool/Special 1 | . . . . 1 . . . . . . . . . . . . . . . . Average Slot Usage (%) 82 | . 97 98 97 87 66 39 59 80 36 70 82 84 84 77 78 77 77 79 84 81 Engine 3 | . 14 14 14 2 . . . . . . . . . . . . . . . . Reactor 5 | . . . . . . . . . . 8 10 10 10 10 10 8 9 12 12 11 Treads 14 | . 28 23 23 10 . . . . 3 7 16 21 21 18 15 13 14 15 15 12 Hover 3 | . . . . 20 21 5 6 18 2 . . . . . . . . . . . Device 15 | . 14 14 8 13 6 3 10 11 . 4 16 21 21 20 24 24 18 16 20 20 Storage 6 | . 14 14 18 5 4 . . . . . . . . . . 2 4 4 4 5 Processor 10 | . . . . 8 10 11 17 23 15 10 14 15 15 15 15 14 14 13 13 11 Protection 3 | . . . . 5 2 . . 5 . 13 7 5 5 4 1 . 2 4 4 3 Energy Gun 1 | . 11 2 . . . . 3 . . 1 . . . . . . 4 . . . Energy Cannon 7 | . 5 11 13 3 4 . . . 2 . 5 9 10 2 5 6 3 6 11 13 Ballistic Gun 3 | . 9 9 14 . 3 . . 1 . 3 . . . . . . . . . . Impact Weapon 1 | . . . . 2 1 . . 3 5 5 4 . . 3 5 4 4 3 . . Peak Build Rating 217 | 8 8 11 28 87 87 43 113 111 58 118 120 115 113 114 117 145 158 181 204 217 Average Rating 103 | 5 7 8 21 70 65 37 58 91 43 99 111 112 113 108 116 135 150 166 191 204 On Entrance 82 | . 8 8 11 28 68 37 32 108 42 31 118 112 113 113 114 117 140 154 173 196 Avg Prop Armor Cover (%) 4 | . . 10 10 1 1 1 6 5 16 2 4 . . . . . . . 7 6 Naked Turns 30 | . . . . . . . . . . . . . . . . . . . . 30 Heaviest Build 219 | 14 30 32 99 113 58 13 45 43 19 103 102 69 65 65 63 90 100 178 191 219 Greatest Support 235 | 40 40 40 48 106 44 19 48 48 46 140 195 195 195 210 210 225 225 225 230 235 Greatest Overweight (x) 16 | . . 1 3 16 1 1 3 1 1 1 . . . . . 1 . 1 1 1 Average Overweight (x) . | . . . 1 . . . 1 . . . . . . . . . . . . . Largest Inventory Capacity 25 | 8 20 15 25 25 15 5 5 5 5 5 5 5 5 5 5 15 15 25 25 25 Average Capacity 15 | 7 13 15 19 15 14 5 5 5 5 5 5 5 5 5 5 11 15 19 25 24 Most Carried 25 | 8 14 15 25 24 15 5 5 5 5 5 5 5 5 5 5 15 15 25 25 25 Average Carried 13 | 3 11 14 17 14 13 3 4 4 4 4 4 4 5 4 4 9 14 17 24 22 Final Capacity 25 | 8 15 15 25 15 5 5 5 5 5 5 5 5 5 5 5 15 15 25 25 5 Final Carried 25 | 8 14 15 25 13 5 4 5 4 4 5 5 5 5 5 4 15 15 25 25 5 Scrap Suit Usage (%) 2 | . . . . 29 . . . . . . . . . . . . . . . . Parts Cannibalized 5 | . . . . 5 . . . . . . . . . . . . . . . . Class Distribution -------------------- 41% | Mutant 15% | Tank 13% | Scavenger-Mutant 10% | Scavenger-Assassin 7% | Assassin 4% | Scavenger-Skirmisher 4% | Derelict-Mutant Dominant Class ---------------- Mutant | -10/Materials Mutant | -10/Subcaves Mutant | -7/Scraptown Mutant | -5/Factory Mutant | -5/Upper Caves Mutant | -5/Upper Caves Mutant | -5/Warlord Scavenger-Mutant | -4/Proximity Caves Mutant | -4/Factory Scavenger-Mutant | -4/Waste Scavenger-Mutant | -4/Factory Scavenger-Skirmisher | -4/Upper Caves Scavenger-Skirmisher | -4/Upper Caves Scavenger-Assassin | -4/Zhirov Scavenger-Assassin | -3/Proximity Caves Scavenger-Assassin | -3/Research Mutant | -3/Quarantine Assassin | -2/Research Tank | -2/Testing Tank | -1/Access Resources | -11 -10 -10 -7 -5 -5 -5 -5 -4 -4 -4 -4 -4 -4 -4 -3 -3 -3 -2 -2 -1 ----------- Run | Yrd Mat Sub Scr Fac Upp Upp War Pro Fac Was Fac Upp Upp Zhi Pro Res Qua Res Tes Acc Matter Collected 5957 | 270 110 193 265 800 252 30 471 103 194 138 244 115 6 80 72 196 129 856 547 886 Remotely . | . . . . . . . . . . . . . . . . . . . . . Salvage Created 16604 | 187 584 428 . 1155 303 . . 101 533 . 888 330 18 371 178 1227 968 3391 1990 3952 Parts 661 | 11 19 20 . 36 4 . . 9 7 . 18 10 1 3 10 47 37 152 94 183 Haulers Intercepted 11 | . 2 . . 2 . . . . 1 . 1 . . . . 2 . 3 . . Recyclers Shooed 11 | 1 3 . . 2 . . . . . . . . . . . 3 1 . . 1 Parts Field Recycled . | . . . . . . . . . . . . . . . . . . . . . Retrieved Matter . | . . . . . . . . . . . . . . . . . . . . . Parts Self-Destructed 34 | . . 5 . . 2 . . 9 . . . 3 3 2 10 . . . . . Prevented 10 | . . . . . 1 . . . . . . 8 1 . . . . . . . Parts Restored . | . . . . . . . . . . . . . . . . . . . . . Kills | -11 -10 -10 -7 -5 -5 -5 -5 -4 -4 -4 -4 -4 -4 -4 -3 -3 -3 -2 -2 -1 ------- Run | Yrd Mat Sub Scr Fac Upp Upp War Pro Fac Was Fac Upp Upp Zhi Pro Res Qua Res Tes Acc Combat Hostiles Destroyed 225 | . 11 11 . 19 2 . . 6 7 . 15 4 1 . 5 14 6 43 27 54 Melee 7 | . . . . 3 1 . . 1 . . . . . . . 1 1 . . . Guns 17 | . 8 2 . . 1 . . 2 . . . . . . . . 2 2 . . Cannons 103 | . 2 2 . 9 . . . 3 3 . 12 2 1 . 5 6 1 19 14 24 AOE 45 | . . 7 . 4 . . . . . . 1 . . . . . . 12 6 15 Classes Destroyed 20 | 2 3 1 . 5 . . . 1 . . 2 . . . . 1 . 3 . 2 Worker 21 | . . . . 1 . . . . 4 . . . . . . . . 6 3 7 Builder 8 | . . . . . . . . . . . . . . . . 1 1 3 2 1 Tunneler 4 | 4 . . . . . . . . . . . . . . . . . . . . Hauler 11 | . 2 . . 2 . . . . 1 . 1 . . . . 2 . 3 . . Recycler 18 | 1 3 . . 2 . . . . 2 . . . . . . 1 4 5 . . Mechanic 2 | . . . . . . . . . . . . . . . . . . 1 1 . Operator 1 | . . . . . . . . . . . . . . . . . . . . 1 Watcher 8 | . . . . 1 . . . . . . . . . . . 1 . 1 1 4 Swarmer 62 | . 7 3 . 4 . . . 5 5 . 3 . 1 . 5 . . 10 5 14 Saboteur 2 | . . . . . . . . 1 . . . . . . . . . . . 1 Grunt 59 | . 4 2 . 4 . . . . 2 . 4 1 . . . 7 3 10 10 12 Brawler 6 | . . . . . . . . . . . 2 . . . . . . . 2 2 Duelist 5 | . . . . 1 . . . . . . . . . . . . . 2 1 1 Sentry 11 | . . . . 1 . . . . . . 3 1 . . . . . 3 . 3 Specialist 2 | . . . . . . . . . . . . . . . . . . 2 . . Hunter 11 | . . . . . . . . . . . 2 2 . . . . . 3 . 4 Programmer 59 | . . . . 9 2 . . . . . 1 . . . . 7 3 12 9 16 Heavy 1 | . . . . . . . . . . . . . . . . . . 1 . . Behemoth 1 | . . . . . . . . . . . . . . . . . . . . 1 Subdweller 6 | . . 6 . . . . . . . . . . . . . . . . . . Best Kill Streak 15 | 2 3 5 . 4 1 . . 5 14 . 6 2 1 . 5 7 5 15 7 10 Combat Bots Only 14 | . 3 5 . 4 1 . . 5 7 . 5 2 1 . 5 2 3 14 5 9 Max Kills in Single Turn 6 | 1 1 2 . 2 1 . . 1 2 . 1 1 1 . 1 1 1 4 6 4 Gunslinging . | . . . . . . . . . . . . . . . . . . . . . Exploded 4 | . . 2 . 2 . . . . . . 1 . . . . . . 4 4 4 Melee 1 | . . . . 1 1 . . 1 . . . . . . . 1 1 . . . Uniques/NPCs Destroyed . | . . . . . . . . . . . . . . . . . . . . . Combat | -11 -10 -10 -7 -5 -5 -5 -5 -4 -4 -4 -4 -4 -4 -4 -3 -3 -3 -2 -2 -1 -------- Run | Yrd Mat Sub Scr Fac Upp Upp War Pro Fac Was Fac Upp Upp Zhi Pro Res Qua Res Tes Acc Hostile Shots Fired 1840 | . 65 32 . 174 108 18 4 77 58 . 60 46 2 . 26 99 69 205 81 716 Missed 516 | . 18 9 . 50 28 7 2 25 19 . 12 16 . . 5 22 15 50 24 214 Hits 1324 | . 47 23 . 124 80 11 2 52 39 . 48 30 2 . 21 77 54 155 57 502 Melee 17 | . . . . 3 . . . 2 . . . . . . . . . 9 . 3 Projectile 1307 | . 47 23 . 121 80 11 2 50 39 . 48 30 2 . 21 77 54 146 57 499 AOE 8 | . . 3 . . . . 4 . . . . . . . . . . . . 1 Critical Strikes 62 | . 1 . . 9 6 . 1 4 . . . . . . . 7 4 9 5 16 Actively Blocked 8 | . . . . . . . . . . . . . . . . . . . . 8 Part Disruptions 7 | . . . . 1 . . . . . . . . . . . 2 . 1 2 1 Damage Taken 26237 | . 475 562 . 2909 1560 214 121 871 746 . 904 428 34 . 368 1691 936 4216 1500 8702 Core 3597 | . 72 143 . 333 349 110 . 173 234 . 36 . . . 40 178 101 192 139 1497 Absorbed by Shields 1159 | . . . . . . . 42 21 . . 155 127 . . 104 . 265 . . 445 Reduced by Siege Mode 376 | . . . . . . . . . . . 28 6 . . 18 118 35 171 . . Redirected to Shielding 37 | . . . . . . . . . . . . . . . . . . . . 37 Ignored by Resistances 1301 | . . . . . . . . . . . . . . . . . . . . 1301 Regen/Repaired (Parts) 1189 | . . . . 47 . . 176 . . 220 201 . . . . 59 . 486 . . Core Remaining (%) 57 | 100 . . 14 . . . . 3 . . . . . . 73 . 78 . 77 . Volleys Fired 963 | 18 53 42 . 85 19 2 31 19 7 6 83 26 3 23 26 68 35 158 62 197 Largest 3 | 2 2 2 . 2 2 1 1 2 1 1 2 1 1 1 1 2 2 2 2 3 Hottest 360 | 90 90 90 . 127 98 47 47 100 100 81 190 85 85 85 85 194 169 214 240 360 Shots Fired 1162 | 36 96 81 . 102 22 2 31 27 7 6 86 26 3 24 28 69 40 159 92 225 Gun 226 | 36 88 31 . 4 9 . 3 8 . 6 1 . . . . . 32 8 . . Cannon 859 | . 8 36 . 95 13 2 10 19 7 . 85 26 3 24 28 69 8 139 85 202 Launcher 59 | . . 14 . 3 . . . . . . . . . . . . . 12 7 23 Special 18 | . . . . . . . 18 . . . . . . . . . . . . . Kinetic 140 | . 22 26 . 43 9 2 13 24 . . 1 . . . . . . . . . Thermal 726 | 36 74 36 . 56 13 . . . . 6 71 15 3 24 28 22 32 99 79 132 Explosive 38 | . . 14 . 3 . . . . . . . . . . . . . 12 2 7 Electromagnetic 212 | . . 5 . . . . . . . . 4 11 . . . 39 8 48 11 86 Entropic 28 | . . . . . . . . 3 7 . 10 . . . . 8 . . . . Robot Hit Streak 32 | 8 12 32 . 11 4 . 15 3 3 7 10 13 1 21 9 17 17 16 13 23 Robot Miss Streak 9 | 2 3 2 . 4 2 . 2 3 2 1 7 2 2 1 3 3 1 3 4 9 Penetration Max 1 | . . . . . . . 1 1 1 . 1 . . . . 1 . . . . Secondary Targets . | . . . . . . . . . . . . . . . . . . . . . Capacitor 453 | . . . . . . . . . . . 81 26 3 24 28 69 27 103 . 92 Shots Hit Robots 825 | 24 61 70 . 84 30 . 25 8 19 5 59 17 1 23 10 63 36 114 45 131 Core Hits 461 | 6 25 25 . 47 4 . 5 5 8 1 22 3 1 8 5 16 11 104 61 104 Critical Kills 12 | . 1 . . 2 1 . . 1 . . . . . . . 1 1 2 2 1 Critical Parts Destroyed 16 | . . . . 6 2 . . . 4 . . . . . . 2 1 1 . . Critical Strikes 47 | . 5 . . 9 3 . . 2 7 . 6 1 . . . 6 2 3 2 1 Burn 4 | . 4 . . . . . . . . . . . . . . . . . . . Meltdown 6 | . . . . 1 . . . . . . . . . . . . . 2 2 1 Destroy 2 | . 1 . . . . . . 1 . . . . . . . . . . . . Blast 2 | . . . . 1 . . . 1 . . . . . . . . . . . . Corrupt 1 | . . . . . . . . . . . . 1 . . . . . . . . Smash 20 | . . . . 7 3 . . . 4 . . . . . . 3 2 1 . . Sunder 12 | . . . . . . . . . 3 . 6 . . . . 3 . . . . Melee Attacks 158 | . . 4 . 36 21 . . 11 15 . 2 1 . . . 25 8 34 1 . Impact 158 | . . 4 . 36 21 . . 11 15 . 2 1 . . . 25 8 34 1 . Slashing . | . . . . . . . . . . . . . . . . . . . . . Piercing . | . . . . . . . . . . . . . . . . . . . . . Sneak Attacks 17 | . . . . 2 1 . . . 4 . . . . . . 1 3 6 . . Combat Hostiles 1 | . . . . 1 . . . . . . . . . . . . . . . . Follow-up Attacks . | . . . . . . . . . . . . . . . . . . . . . Damage Inflicted 43376 | 281 739 1568 . 3863 1313 . 352 313 1556 140 2953 557 32 756 308 3262 1642 9292 5411 9038 Guns 2639 | 281 617 186 . 36 214 . 42 70 . 140 . . . . . . 809 244 . . Cannons 24461 | . 122 544 . 1736 279 . 310 243 657 . 2735 557 32 756 308 2560 307 4411 3020 5884 Explosions 11274 | . . 608 . 766 . . . . . . 218 . . . . . 125 4040 2391 3126 Melee 4970 | . . 230 . 1325 820 . . . 899 . . . . . . 702 397 597 . . Ramming 32 | . . . . . . . . . . . . . . . . . 4 . . 28 Kinetic 1918 | . 66 164 . 809 214 . 352 313 . . . . . . . . . . . . Thermal 18055 | 281 673 544 . 1375 279 . . . . 140 1764 311 32 756 308 702 809 3089 2853 4139 Explosive 7703 | . . 608 . 354 . . . . . . 218 . . . . . . 4034 1219 1270 Electromagnetic 8473 | . . 22 . . . . . . . . 110 246 . . . 1151 432 1572 1339 3601 Impact 4970 | . . 230 . 1325 820 . . . 899 . . . . . . 702 397 597 . . Slashing . | . . . . . . . . . . . . . . . . . . . . . Piercing . | . . . . . . . . . . . . . . . . . . . . . Entropic 2225 | . . . . . . . . . 657 . 861 . . . . 707 . . . . Highest Corruption 29 | . 6 6 . 9 20 20 20 . 4 4 4 4 4 4 4 11 17 20 28 29 Average Corruption 9 | . 5 6 . 4 16 20 20 . 4 4 4 4 4 4 4 3 12 12 24 9 Corruption Purged 8 | . . . . 6 2 . . . . . . . . . . . . . . . Corruption Blocked . | . . . . . . . . . . . . . . . . . . . . . Effects 474 | . 16 25 . 19 29 10 1 . 1 20 14 10 4 3 13 24 37 82 81 85 Message Errors 116 | . 3 6 . 6 6 2 . . . 3 3 2 . . 3 10 16 18 15 23 Matter Fused 106 | . 1 7 . 5 8 4 . . . 7 . 5 1 . 6 5 2 20 19 16 Heat Flow Errors 51 | . 1 3 . . 2 1 . . . 2 2 1 . . . 2 3 13 11 10 Energy Discharges 66 | . 9 4 . 4 4 2 . . . 3 2 2 1 1 . 1 4 8 12 9 Parts Rejected 10 | . . . . . 2 . . . . 1 1 . . . . . 2 2 . 2 Parts Fused 3 | . . . . . . . . . . . . . 1 . 1 . . . 1 . Data Loss (minor) 37 | . 1 2 . . 1 1 . . 1 . 2 . . 1 1 3 6 5 3 10 Data Loss (major) 24 | . 1 1 . 2 1 . 1 . . 2 2 . 1 . . 1 3 5 2 2 Misfires 22 | . . . . 1 1 . . . . . 1 . . 1 2 1 . 5 6 4 Alerts 14 | . . 2 . 1 1 . . . . 2 1 . . . . . . . 4 3 Misdirections 12 | . . . . . 3 . . . . . . . . . . . . . 4 5 Weapon Failures 13 | . . . . . . . . . . . . . . . . 1 1 6 4 1 Overload Shots . | . . . . . . . . . . . . . . . . . . . . . Overflow Damage 4144 | . . 6 . 823 304 . . 10 473 . 42 16 . 19 4 424 216 862 622 323 Projectiles 1407 | . . . . 1 27 . . 10 30 . 42 16 . 19 4 190 . 337 504 227 Explosions 578 | . . . . 291 . . . . . . . . . . . . . 73 118 96 Melee 2159 | . . 6 . 531 277 . . . 443 . . . . . . 234 216 452 . . Knockbacks 41 | . . . . 24 2 . . 2 3 . . . . . . 5 2 3 . . Impact 25 | . . . . 11 2 . . . 3 . . . . . . 5 2 2 . . Kinetic 14 | . . . . 12 . . . 2 . . . . . . . . . . . . Secondary 2 | . . . . 1 . . . . . . . . . . . . . 1 . . Self-Inflicted Damage 814 | . . 34 . 282 . . . . . . . . . . . . 51 . 201 246 Shots 33 | . . 2 . 4 . . . . . . . . . . . . 1 . 10 16 Rammed 2 | . . . . . . . . . . . . . . . . . 1 . . 1 Targets Rammed 3 | . . . . . . . . . . . . . . . . . 1 . . 2 Kicked . | . . . . . . . . . . . . . . . . . . . . . Crushed 1 | . . . . . . . . . . . . . . . . . . . . 1 Highest Temperature 456 | 240 369 208 . 358 275 121 . 42 63 173 427 170 54 216 20 283 152 456 198 352 Average Temperature 102 | 80 103 97 . 117 126 63 . 25 19 42 125 46 36 95 8 80 51 121 70 80 Received Heat Transfer 2314 | . 153 42 . 306 99 72 . 132 45 . 69 41 . . . 212 117 315 153 558 Effects 15 | . . . . 10 . . . . . . 2 . . . . 1 . 2 . . Shutdowns 4 | . . . . 1 . . . . . . 2 . . . . . . 1 . . Energy Bleed 3 | . . . . 1 . . . . . . . . . . . 1 . 1 . . Interference 6 | . . . . 6 . . . . . . . . . . . . . . . . Damage (minor) 2 | . . . . 2 . . . . . . . . . . . . . . . . Siege Activations 16 | . . . . . . . . . . . 3 2 . . 1 3 1 3 1 2 Total Turns 252 | . . . . . . . . . . . 41 55 . . 8 68 9 57 9 5 Longest Duration 45 | . . . . . . . . . . . 21 38 . . 8 45 9 40 9 4 Martial Activations . | . . . . . . . . . . . . . . . . . . . . . Shielding Activations . | . . . . . . . . . . . . . . . . . . . . . Robots Disrupted 1 | . . . . . . . . . . . . . . . . 1 . . . . Combat Hostiles 1 | . . . . . . . . . . . . . . . . 1 . . . . Robots Corrupted 58 | . . . . 3 1 . . . 5 . 1 2 . . . 9 4 12 7 14 Combat Hostiles 47 | . . . . 2 1 . . . 4 . 1 2 . . . 7 2 9 6 13 Parts Fried 102 | . . . . 1 1 . . . 6 . 2 3 . . . 12 14 19 14 30 Impact Corruptions 74 | . . 1 . 18 11 . . . 13 . . . . . . 10 5 16 . . Robots Melted 8 | . 1 . . 1 . . . . . . 1 . . . . . . 2 2 1 Combat Hostiles 6 | . 1 . . 1 . . . . . . 1 . . . . . . 1 1 1 Parts Melted 36 | 1 6 . . 2 . . . . . . 4 1 . . . 3 . 7 6 6 Heat Transferred 17862 | 768 2053 1147 . 1450 350 . . . . 222 1997 370 37 702 370 703 927 2479 1580 2707 Parts Sabotaged 2 | . . . . . . . . 2 . . . . . . . . . . . . Parts Stolen . | . . . . . . . . . . . . . . . . . . . . . Parts Stripped . | . . . . . . . . . . . . . . . . . . . . . Power Chain Reactions 4 | . . . . . . . . . . . . . . . . . . . 1 3 Alert | -11 -10 -10 -7 -5 -5 -5 -5 -4 -4 -4 -4 -4 -4 -4 -3 -3 -3 -2 -2 -1 ------- Run | Yrd Mat Sub Scr Fac Upp Upp War Pro Fac Was Fac Upp Upp Zhi Pro Res Qua Res Tes Acc Maximum Alert Level 5 | . . . . 2 . . . . 1 . 5 . . . . 1 . 3 3 5 Low Security (%) 56 | 100 100 . . 78 . . . . 99 100 13 . . . . 84 100 75 . . Level 1 4 | . . . . 17 . . . . . . 4 . . . . 15 . 2 . . Level 2 16 | . . . . 3 . . . . . . 4 . . . . . . . 51 53 Level 3 14 | . . . . . . . . . . . 5 . . . . . . 22 48 24 Level 4 3 | . . . . . . . . . . . 5 . . . . . . . . 15 Level 5 1 | . . . . . . . . . . . 14 . . . . . . . . 6 High Security 2 | . . . . . . . . . . . 51 . . . . . . . . . Max Security . | . . . . . . . . . . . . . . . . . . . . . Peak Influence 2336 | 10 77 . . 461 . . . . 191 70 2336 . . . . 225 143 1018 1093 1707 Initial 651 | . . . . . . . . . 60 56 . . . . . . 112 73 568 651 Average 388 | . 19 . . 78 . . . . 133 12 1511 . . . . 63 31 274 742 815 Influence Increases 11155 | 25 400 120 . 996 135 15 311 295 210 112 2754 150 20 15 110 550 296 1540 1071 2030 Destroy 0b10 Robot/C 5320 | . 220 100 . 380 40 . 180 120 140 . 1060 80 20 . 100 280 120 860 540 1080 Destroy 0b10 Robot/NC 430 | 25 25 . . 30 10 . . . 35 . 45 . . 15 . 25 25 95 35 65 Destroy Leader 940 | . 44 20 . 96 10 . . 10 12 . 176 10 . . 10 56 30 166 102 198 Allied During Kill 956 | . . . . . . . 56 . . . 900 . . . . . . . . . Successful Hack 163 | . 21 . . . . . . . . . 32 . . . . 41 12 14 16 27 Disable Machine 525 | . . . . 120 . . . . . . 90 . . . . 15 90 15 120 75 Anti-Garrison Action 150 | . . . . . . . . . . . 150 . . . . . . . . . Destroy Structure 1711 | . . . . 220 . . . . 8 112 286 . . . . 28 4 330 243 480 Partial Spotted 15 | . . . . . . . . . . . . . . . . . . . . 15 Lose Combat Pursuer 945 | . 90 . . 150 75 15 75 165 15 . 15 60 . . . 105 15 60 15 90 Influence Decreases 9515 | 25 386 134 . 559 525 62 186 323 147 272 444 1149 440 906 110 349 366 660 996 1476 Entered New Map 3467 | . . 7 . . 163 10 . 125 37 104 . 855 250 891 . . 89 58 443 435 Time Decay 4876 | 25 376 111 . 419 282 32 96 166 70 124 184 294 190 15 110 319 277 542 553 691 Lost Part 788 | . 10 16 . 140 80 20 10 32 40 . . . . . . 30 . 60 . 350 Lost Ally 384 | . . . . . . . 80 . . 44 260 . . . . . . . . . Squads Dispatched 82 | . 1 . . 13 . . . 1 1 . 20 . . . . 4 2 16 10 14 Investigation 10 | . 1 . . 5 . . . . . . . . . . . . . 2 . 2 Extermination 25 | . . . . 4 . . . . . . . . . . . 3 1 7 4 6 Reinforcement 21 | . . . . 4 . . . . 1 . 3 . . . . 1 1 6 3 2 Assault 26 | . . . . . . . . 1 . . 17 . . . . . . 1 3 4 Garrison . | . . . . . . . . . . . . . . . . . . . . . Intercept . | . . . . . . . . . . . . . . . . . . . . . Searches Triggered . | . . . . . . . . . . . . . . . . . . . . . Construction Impeded 4 | . . . . 1 . . . . . . 1 . . . . . . 2 . . Haulers Reinforced 7 | . . . . 2 . . . . 1 . . . . . . 1 . . 1 2 Active Scanning Responses . | . . . . . . . . . . . . . . . . . . . . . Cargo Convoy Interrupts 1 | . . . . . . . . . . . . . . . . . . 1 . . Stealth | -11 -10 -10 -7 -5 -5 -5 -5 -4 -4 -4 -4 -4 -4 -4 -3 -3 -3 -2 -2 -1 --------- Run | Yrd Mat Sub Scr Fac Upp Upp War Pro Fac Was Fac Upp Upp Zhi Pro Res Qua Res Tes Acc Distress Signals 17 | . 3 . . 2 . . 1 . . . 1 . . . . 1 . 3 . 6 Communications Jammed 89 | . . . . . . . . . . . . . . . . 9 . 30 29 21 Distress Signals 86 | . . . . . . . . . . . . . . . . 7 . 30 28 21 Times Spotted 527 | . 22 12 . 38 21 10 56 21 14 6 52 7 1 . 5 25 9 58 33 137 Peak Tracking Total 30 | . 4 4 . 6 14 4 16 11 6 4 9 2 1 . 5 3 4 11 4 30 Tactical Retreats 48 | . 4 . . 4 1 3 4 5 1 1 1 2 . . . 7 1 3 1 10 ECM-based Alert Blocks 32 | . . . . . . 7 . 9 . . . . . . . . . . . 16 Traps | -11 -10 -10 -7 -5 -5 -5 -5 -4 -4 -4 -4 -4 -4 -4 -3 -3 -3 -2 -2 -1 ------- Run | Yrd Mat Sub Scr Fac Upp Upp War Pro Fac Was Fac Upp Upp Zhi Pro Res Qua Res Tes Acc Traps Triggered 17 | . 5 . . 3 . . . . 1 . . . . . . . . 1 5 2 Indirectly 4 | . . . . . . . . . . . . . . . . . . . 4 . Trap Hack Attempts . | . . . . . . . . . . . . . . . . . . . . . Triggered . | . . . . . . . . . . . . . . . . . . . . . Disarmed . | . . . . . . . . . . . . . . . . . . . . . Reprogrammed . | . . . . . . . . . . . . . . . . . . . . . Reused . | . . . . . . . . . . . . . . . . . . . . . Traps Extracted . | . . . . . . . . . . . . . . . . . . . . . Installed . | . . . . . . . . . . . . . . . . . . . . . Triggered . | . . . . . . . . . . . . . . . . . . . . . Machines | -11 -10 -10 -7 -5 -5 -5 -5 -4 -4 -4 -4 -4 -4 -4 -3 -3 -3 -2 -2 -1 ---------- Run | Yrd Mat Sub Scr Fac Upp Upp War Pro Fac Was Fac Upp Upp Zhi Pro Res Qua Res Tes Acc Machines Disabled 38 | . . . . 8 . . . . . . 7 . . 1 . 1 6 1 9 5 Max in Single Turn 4 | . . . . 4 . . . . . . 1 . . 1 . 1 2 1 2 1 Garrison Access 2 | . . . . 1 . . . . . . 1 . . . . . . . . . Energy Cycler 1 | . . . . . . . . . . . . . . . . . . . . 1 Machines Repaired . | . . . . . . . . . . . . . . . . . . . . . Machines Dismantled . | . . . . . . . . . . . . . . . . . . . . . Machines Sabotaged . | . . . . . . . . . . . . . . . . . . . . . Overloaded Fab Kills . | . . . . . . . . . . . . . . . . . . . . . Hacking | -11 -10 -10 -7 -5 -5 -5 -5 -4 -4 -4 -4 -4 -4 -4 -3 -3 -3 -2 -2 -1 --------- Run | Yrd Mat Sub Scr Fac Upp Upp War Pro Fac Was Fac Upp Upp Zhi Pro Res Qua Res Tes Acc Machines Accessed 77 | . 7 2 6 8 . . 10 . . . 2 1 2 9 . 8 5 5 6 6 Terminals 27 | . 5 . . 3 . . . . . . 1 . . . . 4 3 3 4 4 Fabricators . | . . . . . . . . . . . . . . . . . . . . . Repair Stations 4 | . . . . . . . . . . . . . . . . 1 1 1 1 . Recycling Units 7 | . 2 . . 4 . . . . . . . . . . . . . 1 . . Scanalyzers 6 | . . . . . . . . . . . 1 . . . . 3 1 . . 1 Garrison Access 3 | . . . . 1 . . . . . . . . . . . . . . 1 1 Total Hacks 213 | . 20 3 38 12 . . 21 . . . 6 1 8 48 . 16 9 9 13 9 Successful 154 | . 10 3 38 5 . . 21 . . . 3 1 8 48 . 8 1 5 2 1 Failed 59 | . 10 . . 7 . . . . . . 3 . . . . 8 8 4 11 8 Catastrophic 14 | . 1 . . 2 . . . . . . 1 . . . . 2 2 . 1 5 Database Lockouts . | . . . . . . . . . . . . . . . . . . . . . Manual 40 | . 11 . . 7 . . . . . . 3 . . . . 4 2 4 3 6 Terminals 55 | . 15 . . 6 . . . . . . 3 . . . . 7 5 4 8 7 Fabricators . | . . . . . . . . . . . . . . . . . . . . . Repair Stations 13 | . . . . . . . . . . . . . . . . 4 3 3 3 . Recycling Units 12 | . 5 . . 5 . . . . . . . . . . . . . 2 . . Scanalyzers 10 | . . . . . . . . . . . 3 . . . . 5 1 . . 1 Garrison Access 4 | . . . . 1 . . . . . . . . . . . . . . 2 1 Terminal Hacks 126 | . 3 3 38 . . . 21 . . . 1 1 8 48 . 1 . 2 . . Record 93 | . . 1 37 . . . 10 . . . . . 7 36 . . . 2 . . Part Schematic 5 | . 1 . . . . . . . . . . . . 4 . . . . . . Robot Schematic 1 | . 1 . . . . . . . . . . . . . . . . . . . Robot Analysis 4 | . . . . . . . . . . . . . . 4 . . . . . . Prototype ID Bank 14 | . . . . . . . 10 . . . . . . 4 . . . . . . Open Door 5 | . . 1 . . . . 1 . . . . 1 1 . . 1 . . . . Branch Access Points 1 | . . . . . . . . . . . 1 . . . . . . . . . Hauler Manifests 1 | . 1 . . . . . . . . . . . . . . . . . . . Proto ID Catalog 1 | . . . 1 . . . . . . . . . . . . . . . . . Release Object 1 | . . 1 . . . . . . . . . . . . . . . . . . Fabricator Hacks . | . . . . . . . . . . . . . . . . . . . . . Repair Station Hacks 7 | . . . . . . . . . . . . . . . . 3 1 2 1 . Scan Component 5 | . . . . . . . . . . . . . . . . 2 1 1 1 . Repair 2 | . . . . . . . . . . . . . . . . 1 . 1 . . Recycling Unit Hacks 3 | . 3 . . . . . . . . . . . . . . . . . . . Retrieve Matter 1 | . 1 . . . . . . . . . . . . . . . . . . . Retrieve Components 2 | . 2 . . . . . . . . . . . . . . . . . . . Scanalyzer 5 | . . . . . . . . . . . 2 . . . . 3 . . . . Retrieve Study 5 | . . . . . . . . . . . 2 . . . . 3 . . . . Garrison Access Hacks 1 | . . . . 1 . . . . . . . . . . . . . . . . Seal Access 1 | . . . . 1 . . . . . . . . . . . . . . . . Unauthorized Hacks 12 | . 4 . . 4 . . . . . . . . . . . 1 . 1 1 1 Terminals 7 | . 4 . . . . . . . . . . . . . . 1 . . 1 1 Botnet 7 | . 4 . . . . . . . . . . . . . . 1 . . 1 1 Fabricators . | . . . . . . . . . . . . . . . . . . . . . Repair Stations . | . . . . . . . . . . . . . . . . . . . . . Recycling Units 5 | . . . . 4 . . . . . . . . . . . . . 1 . . Fedlink 5 | . . . . 4 . . . . . . . . . . . . . 1 . . Scanalyzers . | . . . . . . . . . . . . . . . . . . . . . Garrison Access . | . . . . . . . . . . . . . . . . . . . . . Data Cores Recovered 1 | . . . . . . . . . . . . . . . . . . . . 1 Used . | . . . . . . . . . . . . . . . . . . . . . Hacking Detections 42 | . 6 . . 4 . . . . . . 2 . . . . 8 5 5 6 6 Full Trace Events 3 | . 1 . . . . . . . . . . . . . . . . 1 . 1 Feedback Events . | . . . . . . . . . . . . . . . . . . . . . Feedback Blocked . | . . . . . . . . . . . . . . . . . . . . . Robot Schematics Acquired 1 | . 1 . . . . . . . . . . . . . . . . . . . Robots Built . | . . . . . . . . . . . . . . . . . . . . . Authchips . | . . . . . . . . . . . . . . . . . . . . . Time . | . . . . . . . . . . . . . . . . . . . . . Total Robot Build Rating . | . . . . . . . . . . . . . . . . . . . . . Part Schematics Acquired 5 | . 1 . . . . . . . . . . . . 4 . . . . . . Parts Built . | . . . . . . . . . . . . . . . . . . . . . Authchips . | . . . . . . . . . . . . . . . . . . . . . Time . | . . . . . . . . . . . . . . . . . . . . . Total Part Build Rating . | . . . . . . . . . . . . . . . . . . . . . Part Studies Acquired 5 | . . . . . . . . . . . 2 . . . . 3 . . . . Parts Repaired 2 | . . . . . . . . . . . . . . . . 1 . 1 . . Time 95 | . . . . . . . . . . . . . . . . 61 . 34 . . Parts Recycled . | . . . . . . . . . . . . . . . . . . . . . Recycled Matter . | . . . . . . . . . . . . . . . . . . . . . Retrieved Matter . | . . . . . . . . . . . . . . . . . . . . . Retrieved Components 10 | . 10 . . . . . . . . . . . . . . . . . . . Parts Scanalyzed . | . . . . . . . . . . . . . . . . . . . . . Part Schematics Acquired . | . . . . . . . . . . . . . . . . . . . . . Parts Damaged . | . . . . . . . . . . . . . . . . . . . . . Bothacking | -11 -10 -10 -7 -5 -5 -5 -5 -4 -4 -4 -4 -4 -4 -4 -3 -3 -3 -2 -2 -1 ------------ Run | Yrd Mat Sub Scr Fac Upp Upp War Pro Fac Was Fac Upp Upp Zhi Pro Res Qua Res Tes Acc Used RIF Installer . | . . . . . . . . . . . . . . . . . . . . . Robots Hacked 2 | . . . . . . . 2 . . . . . . . . . . . . . Non-combat 1 | . . . . . . . 1 . . . . . . . . . . . . . Combat 1 | . . . . . . . 1 . . . . . . . . . . . . . Robot Hacks Applied 2 | . . . . . . . 2 . . . . . . . . . . . . . parse_system 2 | . . . . . . . 2 . . . . . . . . . . . . . Relay Couplers Released 11 | . . . . . . . . . . . 4 . . . . . . . 3 4 Machine Destruction 4 | . . . . . . . . . . . 4 . . . . . . . . . Programmers 7 | . . . . . . . . . . . . . . . . . . . 3 4 Fabnet Peak Effective % . | . . . . . . . . . . . . . . . . . . . . . Robots Rewired 5 | . . . . . . . 5 . . . . . . . . . . . . . Allies Hacked . | . . . . . . . . . . . . . . . . . . . . . Hacks Repelled . | . . . . . . . . . . . . . . . . . . . . . Allies | -11 -10 -10 -7 -5 -5 -5 -5 -4 -4 -4 -4 -4 -4 -4 -3 -3 -3 -2 -2 -1 -------- Run | Yrd Mat Sub Scr Fac Upp Upp War Pro Fac Was Fac Upp Upp Zhi Pro Res Qua Res Tes Acc Total Allies 26 | . . . . . . 1 5 . . 20 . . . . . . . . . . Largest Group 19 | . . . . . . 1 5 1 . 19 14 . . . . . . . . . Highest-Rated Group 684 | . . . . . . 127 273 64 . 684 559 . . . . . . . . . Highest-Rated Ally 127 | . . . . . . 127 68 64 . 50 50 . . . . . . . . . Total Orders . | . . . . . . . . . . . . . . . . . . . . . Ally Attacks 405 | . . . . . . . 41 . . 97 267 . . . . . . . . . Total Damage 12132 | . . . . . . . 1558 . . 3211 7363 . . . . . . . . . Kills 65 | . . . . . . . 10 . . 9 46 . . . . . . . . . Allies Corrupted . | . . . . . . . . . . . . . . . . . . . . . Allies Melted . | . . . . . . . . . . . . . . . . . . . . . Intel | -11 -10 -10 -7 -5 -5 -5 -5 -4 -4 -4 -4 -4 -4 -4 -3 -3 -3 -2 -2 -1 ------- Run | Yrd Mat Sub Scr Fac Upp Upp War Pro Fac Was Fac Upp Upp Zhi Pro Res Qua Res Tes Acc Active Infowar (turns) 21103 | 78 873 797 2305 2253 389 130 403 820 152 689 808 641 399 361 516 1460 901 2742 1606 2780 Optics 15345 | . . . . 1067 . . 403 820 152 689 808 641 399 361 516 1460 901 2742 1606 2780 Sensors 8727 | . . . . . . . . . . . . 489 399 357 516 1460 316 1807 1565 1818 Seismic 6394 | 78 873 797 2305 1952 389 . . . . . . . . . . . . . . . T.N.C. 595 | . . . . . . . . . . . . . . . . . . 200 395 . Machine Analysis 1569 | . . . . 1569 . . . . . . . . . . . . . . . . Jamming 8880 | . . . . . . . . . . . . . . . . 1295 901 2742 1606 2336 ECM 323 | . . . . . . 130 . 76 . . . . . . . . . . . 117 Robot Analysis Total 4 | . . . . . . . . . . . . . . 4 . . . . . . Derelict Logs Recovered 9 | . . . 3 . . 2 . 2 . . . 2 . . . . . . . . Drone Launches . | . . . . . . . . . . . . . . . . . . . . . Drone Recoveries . | . . . . . . . . . . . . . . . . . . . . . Exploration | -11 -10 -10 -7 -5 -5 -5 -5 -4 -4 -4 -4 -4 -4 -4 -3 -3 -3 -2 -2 -1 ------------- Run | Yrd Mat Sub Scr Fac Upp Upp War Pro Fac Was Fac Upp Upp Zhi Pro Res Qua Res Tes Acc Turns Passed 24496 | 256 1258 797 3593 2253 641 241 1552 820 152 689 808 641 399 361 516 1460 901 2742 1606 2810 Spaces Moved 13093 | 122 572 411 1865 1262 551 502 1023 1013 88 325 390 318 244 195 251 601 406 1136 698 1120 Core 355 | 17 . . . 1 . . . 228 49 . . . . . . . . . . 60 Treads 8331 | 105 572 333 1440 351 . . . . 6 225 390 318 244 195 251 601 406 1136 698 1060 Legs 2 | . . 2 . . . . . . . . . . . . . . . . . . Wheels 648 | . . 76 425 14 . . . . 33 100 . . . . . . . . . . Hover 3179 | . . . . 896 482 . 1017 784 . . . . . . . . . . . . Flight 578 | . . . . . 69 502 6 1 . . . . . . . . . . . . Fastest Speed 35 | 50 160 120 120 50 35 35 56 45 50 85 160 162 162 160 160 160 180 161 148 50 Average Speed 143 | 144 160 154 189 116 92 42 122 55 70 137 161 162 162 161 160 172 180 169 163 175 Slowest Speed 850 | 160 160 240 325 850 106 125 205 133 145 160 162 162 162 162 160 200 180 270 237 270 Overloaded Moves . | . . . . . . . . . . . . . . . . . . . . . Propulsion Burnouts . | . . . . . . . . . . . . . . . . . . . . . Robots Hopped 2 | . . . . . 1 1 . . . . . . . . . . . . . . Potential Cave-ins 2 | . . . . . . . . . . . . . . . 2 . . . . . Cave-ins Triggered 1 | . . . . . . . . . 1 . . . . . . . . . . . Teleports 1 | . . . . . . . . . . . . . . . . . . . . 1 Exploration Rate (%) 48 | 5 75 28 91 25 68 66 92 94 4 96 12 47 43 63 44 16 39 24 61 35 Regions Visited 20 Branch Regions 12 Pre-discovered Areas 9 | . . . 1 1 . 1 . 1 . . . 1 1 3 . . . . . . Known Exits Taken 11 | . . . . . . . 1 1 . . 1 1 1 1 1 1 1 1 1 . Unknown Exits Taken 7 | 1 1 1 1 1 1 1 . . . . . . . . . . . . . . Scrap Searched 10 | . . . 5 . 2 1 . 2 . . . . . . . . . . . . Spaces Dug 146 | . . . . 26 1 . . 18 . . 2 2 . . 4 10 1 49 14 19 Terrain Destroyed 785 | . . 66 . 142 6 1 2 30 3 . 36 5 2 . 17 16 1 146 93 219 Melee 59 | . . . . 8 . . . 11 . . 2 1 . . . 9 1 27 . . Projectile 203 | . . . . 29 6 1 2 19 3 . 14 4 2 . 17 7 . 26 31 42 AOE 523 | . . 66 . 105 . . . . . . 20 . . . . . . 93 62 177 Terrain Rammed . | . . . . . . . . . . . . . . . . . . . . . Walls Destroyed . | . . . . . . . . . . . . . . . . . . . . . Machines Disabled . | . . . . . . . . . . . . . . . . . . . . . Actions | -11 -10 -10 -7 -5 -5 -5 -5 -4 -4 -4 -4 -4 -4 -4 -3 -3 -3 -2 -2 -1 --------- Run | Yrd Mat Sub Scr Fac Upp Upp War Pro Fac Was Fac Upp Upp Zhi Pro Res Qua Res Tes Acc Total 17778 | 166 824 488 1935 1890 622 529 1294 1226 141 559 565 438 248 242 366 975 549 1820 1073 1828 Wait 2792 | 5 174 11 . 399 11 22 197 168 16 205 43 84 2 . 89 244 72 374 254 422 Move 13070 | 121 571 410 1864 1261 548 499 1022 1012 88 324 389 317 243 194 250 600 405 1135 697 1120 Hop 2 | . . . . . 1 1 . . . . . . . . . . . . . . Pick Up 215 | 15 11 6 28 22 9 1 5 . 5 4 12 1 . 3 . 17 8 38 9 21 Fast Attach 87 | . . . 5 15 5 . 18 . 3 8 3 . . 6 . 4 1 6 10 3 Attach 133 | 7 2 4 2 22 6 3 . 2 5 2 5 . . 3 1 6 5 19 4 35 Detach 21 | . . . 2 3 . 1 1 1 . . 1 . . . . 1 1 5 1 4 Swap 152 | . 7 7 8 22 1 . 6 8 . 3 12 8 . 4 . 4 6 27 14 15 Drop 179 | . 6 3 26 25 1 . 14 5 2 7 15 1 . 9 . 6 7 24 21 7 Fire 963 | 18 53 42 . 85 19 2 31 19 7 6 83 26 3 23 26 68 35 158 62 197 Melee 158 | . . 4 . 36 21 . . 11 15 . 2 1 . . . 25 8 34 1 . Ram 2 | . . . . . . . . . . . . . . . . . . . . 2 Kick . | . . . . . . . . . . . . . . . . . . . . . Crush 3 | . . . . . . . . . . . . . . . . . 1 . . 2 Escape Stasis . | . . . . . . . . . . . . . . . . . . . . . Rewire . | . . . . . . . . . . . . . . . . . . . . . Trap . | . . . . . . . . . . . . . . . . . . . . . Miscellaneous 1 | . . 1 . . . . . . . . . . . . . . . . . . Route ------- -11/Scrapyard -10/Materials (discovered 3 exits: [*Mat] / [*Min] / *Sub) -10/Subcaves -7/Scraptown (discovered 2 exits: *Fac x2) -5/Factory -5/Upper Caves -5/Upper Caves (discovered 2 exits: *Fac / *War) -5/Warlord -4/Proximity Caves -4/Factory -4/Waste -4/Factory (discovered 3 exits: *Res / *Upp x2) -4/Upper Caves -4/Upper Caves -4/Zhirov -3/Proximity Caves -3/Research (discovered 2 exits: Res / *Qua) -3/Quarantine -2/Research -2/Testing -1/Access History --------- Turn | Location | Event 6 | -11/Scrapyard | Discovered new exit (range 14) 257 | -11/Scrapyard | Entered Materials 318 | -10/Materials | Build established: Mutant 1166 | -10/Materials | Discovered new exit (range 5) 1447 | -10/Materials | Discovered new exit (range 6) 1501 | -10/Materials | Discovered new exit (range 13) 1515 | -10/Materials | Entered Subcaves 1516 | -10/Subcaves | Approached by a straggling Scientist 1809 | -10/Subcaves | Scientist uncovered a shortcut to Scraptown 1940 | -10/Subcaves | Core integrity fell below 50% 1942 | -10/Subcaves | Ambushed by Subdweller buried in earth 2135 | -10/Subcaves | Released subatomizers from SUBCON Basin 2206 | -10/Subcaves | Shifting Twisted Machinery released Scrap Shield 2210 | -10/Subcaves | Core integrity fell below 20% 2312 | -10/Subcaves | Entered Scraptown 2312 | -7/Scraptown | System corruption cleaned by C-Scrubber 2634 | -7/Scraptown | Scanned Subdweller tech in exchange for log data 2637 | -7/Scraptown | Learned location of Warlord (-5) 2639 | -7/Scraptown | Learned Factory non-interactive machine intel 2640 | -7/Scraptown | Learned location of 2 exits from Lower Caves 2684 | -7/Scraptown | Visited Junk Repository 2719 | -7/Scraptown | Visited Cave Peace 2835 | -7/Scraptown | Visited Red Mages 2861 | -7/Scraptown | Visited Junk Repository 3168 | -7/Scraptown | Visited Science Testing Area 3195 | -7/Scraptown | Visited Supply Room 3316 | -7/Scraptown | Discovered new exit (range 13) 3393 | -7/Scraptown | Visited Fellowship of the Rings 3446 | -7/Scraptown | Visited UFD Registry 3446 | -7/Scraptown | Registered with UFD as "Bioshell" 3499 | -7/Scraptown | Visited Infowarlord's Domain 3556 | -7/Scraptown | Visited DA-N13 Charitable Foundation 3571 | -7/Scraptown | Found DCF Scrap (28 items) 3679 | -7/Scraptown | Visited Research Penetration Think Tank 3739 | -7/Scraptown | Visited Scrapoid Pod Storage 3762 | -7/Scraptown | Visited Scrap Suit Storage 3818 | -7/Scraptown | Visited Curators Association 3834 | -7/Scraptown | Received an X-ray algorithm 3847 | -7/Scraptown | Visited Junk Cannon Lab 3863 | -7/Scraptown | Found Prototype Special Weapon 3863 | -7/Scraptown | Identified Junk Cannon 3898 | -7/Scraptown | Visited Science Guys 3952 | -7/Scraptown | Visited Chapter 10 4239 | -7/Scraptown | Found Exp. Signal Interpreter 4396 | -7/Scraptown | Found Scrapoid Pod 4472 | -7/Scraptown | Found Scrap Suit 4610 | -7/Scraptown | Delivered Scrap Shield to a Scientist 5814 | -7/Scraptown | Met Optimus 5814 | -7/Scraptown | Accepted into 0bPrime 5901 | -7/Scraptown | Discovered new exit (range 3) 5905 | -7/Scraptown | Civil war broke out across Scraptown 5905 | -7/Scraptown | Entered Factory 5905 | -5/Factory | Evolved 10 slots: Propulsion x4, Utility x6 5906 | -5/Factory | Loaded intel: 225 non-interactive machine locations 6210 | -5/Factory | Build established: Derelict-Mutant 7085 | -5/Factory | Discovered new exit (range 6) 7357 | -5/Factory | Build established: Mutant 7569 | -5/Factory | Loaded intel: 8 recycling unit locations 7583 | -5/Factory | Learned location of Protoforge (-2) 7685 | -5/Factory | Lost 3 parts (1n2u) 7950 | -5/Factory | Lost 5 parts (1p4u) 8158 | -5/Factory | Entered Upper Caves 8160 | -5/Upper Caves | UFD Scientist delivered a prototype 8160 | -5/Upper Caves | Found Prototype Protection 8161 | -5/Upper Caves | Identified Enh. Scrap Shield 8331 | -5/Upper Caves | System corruption reached 10% 8363 | -5/Upper Caves | Core integrity fell below 50% 8419 | -5/Upper Caves | Lost 6 parts (3n2u1w) 8710 | -5/Upper Caves | Discovered new exit (range 7) 8799 | -5/Upper Caves | Entered another Upper Caves area 8804 | -5/Upper Caves | Attracted the attention of an 0b10 checkpoint 8808 | -5/Upper Caves | Learned 4 Factory zone layouts 8810 | -5/Upper Caves | Discovered new exit (range 13) 8831 | -5/Upper Caves | Lost 9 parts (1p3n4u1w) 8859 | -5/Upper Caves | Spotted B-75 Beast 9033 | -5/Upper Caves | Discovered new exit (range 11) 9040 | -5/Upper Caves | Entered Warlord 9081 | -5/Warlord | System corruption cleaned by Quarantine Array 9692 | -5/Warlord | Warlord's base attacked by MAIN.C 9894 | -5/Warlord | Build established: Commander-Mutant 9900 | -5/Warlord | Found Prototype Piercing Weapon 9900 | -5/Warlord | Identified Vortex Lance 9904 | -5/Warlord | Found Vortex Lance 9907 | -5/Warlord | Found Prototype Energy Cannon 9908 | -5/Warlord | Identified Vortex Driver 9912 | -5/Warlord | Found Vortex Driver 10019 | -5/Warlord | Rebuked by Warlord 10042 | -5/Warlord | Warlord forces counterattacked 10129 | -5/Warlord | Spotted Striker 10134 | -5/Warlord | Spotted Executioner 10175 | -5/Warlord | Lost 7 allies 10190 | -5/Warlord | Spotted Executioner 10197 | -5/Warlord | Allies destroyed 7J-BYG(g) 10235 | -5/Warlord | Spotted B-86 Titan 10259 | -5/Warlord | Lost 15 allies 10367 | -5/Warlord | Warlord base infiltrated, sounded retreat 10502 | -5/Warlord | Spotted Executioner 10535 | -5/Warlord | Discovered new exit (range 21) 10550 | -5/Warlord | Found Prototype Device 10550 | -5/Warlord | Identified Exp. Thermal Shield 10574 | -5/Warlord | Identified exit to Proximity Caves 10576 | -5/Warlord | Lost 5 allies 10592 | -5/Warlord | Entered Proximity Caves 10592 | -4/Proximity Caves | Accompanied by 1 ally 10689 | -4/Proximity Caves | Attracted the attention of an 0b10 outpost 10760 | -4/Proximity Caves | Build established: Scavenger-Mutant 10994 | -4/Proximity Caves | Core integrity fell below 20% 11019 | -4/Proximity Caves | Learned location of Testing (-2) 11058 | -4/Proximity Caves | Spotted B-86 Titan 11091 | -4/Proximity Caves | Learned 12 Research zone layouts 11407 | -4/Proximity Caves | Discovered new exit (range 12) 11412 | -4/Proximity Caves | Identified exit to Factory 11412 | -4/Proximity Caves | Entered Factory 11412 | -4/Factory | Evolved 2 slots: Power x1, Utility x1 11413 | -4/Factory | Identified exit to Upper Caves 11419 | -4/Factory | Found Quantum Capacitor 11484 | -4/Factory | Crushed by falling debris 11499 | -4/Factory | Build established: Mutant 11513 | -4/Factory | Destroyed 7 combat bots 11515 | -4/Factory | Lost 3 parts (1n2u) 11564 | -4/Factory | Sucked down chute 11564 | -4/Factory | Entered Waste 11565 | -4/Waste | Met a frightened Derelict 11576 | -4/Waste | Spotted C-40 Crusher 11592 | -4/Waste | Spotted C-40 Crusher 11599 | -4/Waste | Warlord forces began an assault 11648 | -4/Waste | Allies destroyed C-40 Crusher 11683 | -4/Waste | Spotted C-40 Crusher 11692 | -4/Waste | Spotted C-40 Crusher 11693 | -4/Waste | Spotted C-40 Crusher 11696 | -4/Waste | Allies destroyed C-40 Crusher 11698 | -4/Waste | Allies destroyed C-40 Crusher 11703 | -4/Waste | Allies destroyed C-40 Crusher 11705 | -4/Waste | Allies destroyed C-40 Crusher 11721 | -4/Waste | Spotted C-40 Crusher 11729 | -4/Waste | Lost 5 allies 11730 | -4/Waste | Allies destroyed C-40 Crusher 11741 | -4/Waste | Found Damper Plating 11813 | -4/Waste | Build established: Scavenger-Mutant 12133 | -4/Waste | Discovered new exit (range 13) 12194 | -4/Waste | Identified exit to Factory 12253 | -4/Waste | Entered Factory 12253 | -4/Factory | Accompanied by 14 allies 12503 | -4/Factory | First assault squad dispatched 12556 | -4/Factory | Discovered new exit (range 8) 12566 | -4/Factory | Lost 5 allies 12645 | -4/Factory | High security lockdown imminent 12725 | -4/Factory | High security lockdown engaged 12857 | -4/Factory | Lost 3 allies 13061 | -4/Factory | Entered Upper Caves 13336 | -4/Upper Caves | Learned location of 1 exit from Proximity Caves 13471 | -4/Upper Caves | Build established: Scavenger-Skirmisher 13567 | -4/Upper Caves | Attracted the attention of an 0b10 checkpoint 13659 | -4/Upper Caves | Learned location of Armory (-3) 13666 | -4/Upper Caves | Discovered new exit (range 6) 13700 | -4/Upper Caves | Identified exit to Upper Caves 13702 | -4/Upper Caves | Entered another Upper Caves area 13817 | -4/Upper Caves | Entered an active Warlord outpost 13841 | -4/Upper Caves | Learned location of 1 exit from Factory 13841 | -4/Upper Caves | Learned Factory stockpile data 13841 | -4/Upper Caves | Learned Armory stockpile data 13841 | -4/Upper Caves | Learned Factory security intel 13841 | -4/Upper Caves | Learned Factory terminal intel 14056 | -4/Upper Caves | Discovered new exit (range 11) 14070 | -4/Upper Caves | Identified exit to Zhirov 14101 | -4/Upper Caves | Entered Zhirov 14101 | -4/Zhirov | Discovered new exit (range 3) 14131 | -4/Zhirov | Met Zhirov 14183 | -4/Zhirov | Learned location of Quarantine (-3) 14183 | -4/Zhirov | Learned location of Command (-1) 14201 | -4/Zhirov | Zhirov requested help retrieving the SGEMP Prototype 14355 | -4/Zhirov | Found Alien Artifact 14360 | -4/Zhirov | Identified Integrated Dissipator 14360 | -4/Zhirov | Installed Integrated Dissipator, increased core heat dissipation (+20) 14404 | -4/Zhirov | Found Alien Artifact 14461 | -4/Zhirov | Identified exit to Proximity Caves 14462 | -4/Zhirov | Entered Proximity Caves 14463 | -3/Proximity Caves | Identified exit to Research 14622 | -3/Proximity Caves | Spotted B-86 Titan 14640 | -3/Proximity Caves | Build established: Scavenger-Assassin 14978 | -3/Proximity Caves | Entered Research 14978 | -3/Research | Evolved 2 slots: Utility x1, Weapon x1 14979 | -3/Research | Identified exit to Quarantine 14979 | -3/Research | Identified exit to Research 15109 | -3/Research | Spotted B-86 Titan 15147 | -3/Research | Repaired Broken Imp. Cooling System 15871 | -3/Research | Spotted B-86 Titan 15962 | -3/Research | Found Prototype Protection 15967 | -3/Research | Found Prototype Protection 16291 | -3/Research | System corruption reached 10% 16438 | -3/Research | Entered Quarantine 16621 | -3/Quarantine | Build established: Assassin 16674 | -3/Quarantine | Identified Centrium Heavy Armor Plating (x2) 17176 | -3/Quarantine | Found Alien Artifact 17263 | -3/Quarantine | Discovered exit to Research (range 8) 17339 | -3/Quarantine | Entered Research 17339 | -2/Research | Evolved 2 slots: Power x1, Utility x1 17586 | -2/Research | Repaired Imp. Heavy Siege Treads 17636 | -2/Research | Identified Phase Redirector 18072 | -2/Research | Cargo convoy interrupted 18123 | -2/Research | Spotted Striker 18212 | -2/Research | Loaded intel: 5 recycling unit locations 18435 | -2/Research | System corruption reached 10% 19457 | -2/Research | Discovered new exit (range 13) 19497 | -2/Research | Identified exit to Testing 19499 | -2/Research | Destroyed 14 combat bots 19589 | -2/Research | First assault squad dispatched 19657 | -2/Research | Lost 3 parts (1p1n1u) 19707 | -2/Research | Destroyed 7 combat bots 20081 | -2/Research | Entered Testing 20283 | -2/Testing | Found Prototype Launcher 20284 | -2/Testing | Identified Ragnarok Missile Launcher 20317 | -2/Testing | Found Prototype Device 20317 | -2/Testing | Identified Thermal Barrier 20328 | -2/Testing | Found Gamma Bomb Array 20474 | -2/Testing | Found Prototype Device 20474 | -2/Testing | Identified Adv. Particle Accelerator 20581 | -2/Testing | First assault squad dispatched 20762 | -2/Testing | Build established: Tank 21201 | -2/Testing | Found Prototype Energy Cannon 21201 | -2/Testing | Identified Hpw. Disruptor Cannon 21439 | -2/Testing | Spotted Fortress 21670 | -2/Testing | Discovered new exit (range 8) 21679 | -2/Testing | Identified exit to Access 21687 | -2/Testing | Entered Access 21687 | -1/Access | Evolved 2 slots: Utility x1, Weapon x1 22452 | -1/Access | Found Prototype Device 22452 | -1/Access | Identified Exp. EM Shield 22456 | -1/Access | Found Exp. EM Shield 22625 | -1/Access | Spotted B-99 Colossus 22673 | -1/Access | Destroyed B-99 Colossus 23138 | -1/Access | Destroyed 8 combat bots 23558 | -1/Access | Lost 3 parts (1u2w) 23650 | -1/Access | Found Quantum Capacitor 23693 | -1/Access | System corruption reached 10% 23740 | -1/Access | Energy Cycler disabled 23937 | -1/Access | First assault squad dispatched 24030 | -1/Access | Identified Transdimensional Reconstructor 24030 | -1/Access | Warped through subspace 24054 | -1/Access | Lost 4 parts (1n2u1w) 24067 | -1/Access | Found Gamma Bomb Array 24290 | -1/Access | Spotted B-99 Colossus 24318 | -1/Access | Destroyed 9 combat bots 24368 | -1/Access | Lost 14 parts (3p3n5u3w) 24467 | -1/Access | Released all parts (13) 24481 | -1/Access | Core integrity fell below 50% 24493 | -1/Access | Lost 9 parts (1p4n2u2w) 24493 | -1/Access | Core integrity fell below 20% 24497 | -1/Access | Destroyed by G-73 Enforcer with Heavy Laser Last Messages --------------- 24467_ Released Enh. Nova Cannon. 24468_ Slug penetrates Wall. 24469_ Slug penetrates Door. 24469_ U-05 Engineer builds a Wall. 24473_ Slug penetrates Wall. 24473_ U-05 Engineer builds a Wall. 24474_ System corrupted: Matter fused (-10). 24483_ Knocked back. 24483_ Slug penetrates Earth. 24486_ Penetrated by Slug. 24486_ Slug penetrates Door. 24489_ TF Node disabled. 24489_ Adv. Signal Interpreter tumbles out of TF Node. 24490_ System corrupted: Heat flow error (+225). 24492_ Penetrated by Slug. 24492_ Slug penetrates Wall. 24492_ Penetrated by Slug. 24492_ Slug penetrates Wall. 24495_ Slug penetrates Repair Station. Map ----- +----------------------------------------------------+ | T ######""## #???????? ??????????????????? | | [[*%==%%[=[=#???????? ?????????????????? | | ##### ######"*####????????? ?????????????????? | | ????########""" "*# #????????? ????????????????? | | ???????# """[####??????????#????????????????? | | ???????# # !#????????????????????????????? | | ???????# # [%#????????????????????????????? | | ???????# / =#????????????????????????????? | | ???????# #????????????????????????????? | | ???????# # # #??????????????????????????? | | ???########## ## # # ????????????????????????? | | ???# = # # B # #?????????????????? | | ???# ! % w #?????????????????? | | ???# # != #?????????????????? | | ???# g #?????????????????? | | ???# ! """" #?????????????????? | | ???# ##p ""R"" #?????????????????? | | ???# ## "" "" #?????????????????? | | ???######/####### #######???????????? | | ???????# ###### +???????????? | | ???????# s #???????????? | | ???????# ! ### ###?????????? | | ???????##+##?# ss s ?????????? | | ??????? ?+ %s ss????????? | | ??????# # % ! s????????? | | ??????# # %@ #???????????? | | ??????# !! # % #???????????? | | ??????# !! # #???????????? | | ??????# ####################### +?????????? | | ??????########???????????????????????????????????? | | ?????????????????????????????????????????????????? | | ?????????????????????????????????????????????????? | | ?????????????????????????????????????????????????? | | | | | | | | | | | | | | | | | | | | | | | | | | | | | | | | | | | +----------------------------------------------------+ Best States ------------- Heat Dissipation 131 Coolant Potential 80 Energy Generation 65 Energy Capacity 1065 Matter Stores 300 Matter Capacity 600 Sight Range 23 Robot Scan Range 16 Terrain Scan Density 10 ECM Strength 2 Jamming Range 16 Armor Coverage 2050 Resistance: TH 50 Resistance: EM 90 Propulsion Shielding 33 Weapon Cycling 20 Melee Speed Boost 20 Evasion (%) 63 Targeting Accuracy 8 Melee Accuracy 16 Armor Integrity Analysis 30 Recoil Reduction 6 Particle Charging 50 Offensive Hacking 10 Item Schematics ----------------- Flight Unit | -10/Materials | Hacked Assault Drone Bay | -4/Zhirov | Free Exp. Heat Sink | -4/Zhirov | Free Exp. Optical Array | -4/Zhirov | Free Imp. Arc Thrower | -4/Zhirov | Free Robot Schematics ------------------ M-13 Machinist | -10/Materials | Hacked Fabricated ------------ Nothing Repaired ---------- Imp. Cooling System | 15% | -3/Research | Broken Imp. Heavy Siege Treads | 11% | -2/Research Studied --------- Hvy. Treads | -4/Factory | Hacked Antimatter Reactor | -4/Factory | Hacked Phase Cannon | -3/Research | Hacked Power Maul | -3/Research | Hacked Com. HERF Cannon | -3/Research | Hacked Alien Tech Used ----------------- Integrated Dissipator Phase Redirector Transdimensional Reconstructor Achievements -------------- Analysis Probe Batter Up Explosive Keycard Loot Taster Nice Directions, Buddy No Signal Nope Protector Tank Life Challenges ------------ None Game ------ Seed MetafiberArcsightAutocannon Manual? 0 Play Time 05:32:10 Cumulative 69.8 hours Start 2025.12.05 @ 23:10:04 End 2026.01.25 @ 11:20:55 Sessions 25 Manual Loads 0 Difficulty Rogue Special Mode None Game No. 31 Rogue 31 Adventurer 0 Explorer 0 Win Type - Total 1 Types 1/0/0/0/0/0/0/0/0/0 Lore% 46 Gallery% 43 Achievement% 39 Wizard Run 0 Options --------- Layout 1 ASCII 0 Keyboard 0 Movement Numpad Keybinds 0 Fullscreen 2 Font 24/Smallcaps Map View 50x35 Zoom Use 0% Tactical HUD 1 Map Filters NONE Filters NONE Steam 1 RUN: 3b887f56-713f-434b-9e8d-1ad19f3a293d